[Event "*** Titled Tuesday 3|2 Blitz"]
[Site "Chess.com"]
[Date "2015.04.07"]
[Round "3"]
[White "guillead1"]
[Black "Recombinant"]
[Result "1-0"]
[WhiteElo "2392"]
[BlackElo "2141"]
[TimeControl "180+2"]
[EndTime "11:39:19 PDT"]
[Termination "guillead1 won by resignation"]

1. d4 {[%clk 0:03:01.9]} 1... d5 {[%clk 0:03:00.5]} 2. c4 {[%clk 0:03:03.5]}
2... c6 {[%clk 0:02:59.5]} 3. Nf3 {[%clk 0:03:04.7]} 3... Nf6 {[%clk 0:03:00.2]}
4. g3 {[%clk 0:03:05.4]} 4... g6 {[%clk 0:03:00.7]} 5. Bg2 {[%clk 0:03:06.3]}
5... Bg7 {[%clk 0:03:02.2]} 6. O-O {[%clk 0:03:08.2]} 6... O-O {[%clk
0:03:03.3]} 7. Ne5 {[%clk 0:03:08.9]} 7... Nbd7 {[%clk 0:03:02.3]} 8. Nc3 {[%clk
0:03:02.9]} 8... dxc4 {[%clk 0:02:54.9]} 9. Nxc4 {[%clk 0:03:03.4]} 9... Nb6
{[%clk 0:02:56]} 10. Ne5 {[%clk 0:03:04]} 10... Nfd7 {[%clk 0:02:56.9]} 11. Nf3
{[%clk 0:03:03.3]} 11... e5 {[%clk 0:02:54.1]} 12. Bg5 {[%clk 0:03:01.1]} 12...
Qe8 {[%clk 0:02:43.5]} 13. dxe5 {[%clk 0:02:35.3]} 13... Nxe5 {[%clk 0:02:40.9]}
14. Nxe5 {[%clk 0:02:36.2]} 14... Qxe5 {[%clk 0:02:39.1]} 15. Bf4 {[%clk
0:02:35.7]} 15... Qa5 {[%clk 0:02:32]} 16. Qc1 {[%clk 0:02:22.3]} 16... Be6
{[%clk 0:02:25]} 17. Bh6 {[%clk 0:02:22.1]} 17... Rad8 {[%clk 0:02:14.8]} 18.
Ne4 {[%clk 0:02:09.6]} 18... Bd5 {[%clk 0:01:50.9]} 19. Bxg7 {[%clk 0:01:49.6]}
19... Kxg7 {[%clk 0:01:49.5]} 20. Nc5 {[%clk 0:01:25.8]} 20... Bxg2 {[%clk
0:01:44.7]} 21. Kxg2 {[%clk 0:01:27.7]} 21... Rde8 {[%clk 0:01:23.9]} 22. Re1
{[%clk 0:01:14.7]} 22... Re7 {[%clk 0:01:22]} 23. Qg5 {[%clk 0:01:10.4]} 23...
Nd5 {[%clk 0:01:15.8]} 24. Nb3 {[%clk 0:00:45.2]} 24... Qc7 {[%clk 0:00:53]} 25.
e4 {[%clk 0:00:45.5]} 25... Nb4 {[%clk 0:00:48.3]} 26. Qc5 {[%clk 0:00:41.3]}
26... Na6 {[%clk 0:00:41.9]} 27. Qxa7 {[%clk 0:00:37.4]} 27... Rfe8 {[%clk
0:00:36.6]} 28. Qd4+ {[%clk 0:00:38]} 28... Kg8 {[%clk 0:00:36.7]} 29. Re3
{[%clk 0:00:34.6]} 29... Rd7 {[%clk 0:00:26.5]} 30. Qc4 {[%clk 0:00:33.2]} 30...
Qe5 {[%clk 0:00:18.1]} 31. Qc3 {[%clk 0:00:34.2]} 31... Qe7 {[%clk 0:00:18.1]}
32. Rae1 {[%clk 0:00:34.5]} 32... Nc7 {[%clk 0:00:19]} 33. Nc5 {[%clk
0:00:33.7]} 33... Rdd8 {[%clk 0:00:12.6]} 34. Nxb7 {[%clk 0:00:34.5]} 34... Rb8
{[%clk 0:00:11.8]} 35. Nc5 {[%clk 0:00:34.3]} 35... Nb5 {[%clk 0:00:10.8]} 36.
Qc1 {[%clk 0:00:34.9]} 36... Nd4 {[%clk 0:00:10.1]} 37. Nd3 {[%clk 0:00:34.9]}
37... Ne6 {[%clk 0:00:09.9]} 38. b4 {[%clk 0:00:31]} 38... Rec8 {[%clk
0:00:10.4]} 39. a3 {[%clk 0:00:31]} 39... Ra8 {[%clk 0:00:11.5]} 40. Nc5 {[%clk
0:00:31]} 40... Nd4 {[%clk 0:00:11.5]} 41. Qc4 {[%clk 0:00:29.4]} 41... Nb5
{[%clk 0:00:11.5]} 42. a4 {[%clk 0:00:28]} 42... Nd6 {[%clk 0:00:09.2]} 43. Qc3
{[%clk 0:00:29]} 43... Ne8 {[%clk 0:00:07.4]} 44. e5 {[%clk 0:00:28.7]} 44...
Nc7 {[%clk 0:00:08.2]} 45. Ne4 {[%clk 0:00:23.4]} 45... Nd5 {[%clk 0:00:08.9]}
46. Nf6+ {[%clk 0:00:24.7]} 46... Kf8 {[%clk 0:00:08.6]} 47. Nxd5 {[%clk
0:00:21.1]} 47... cxd5 {[%clk 0:00:10.5]} 48. Qd4 {[%clk 0:00:22]} 48... Rxa4
{[%clk 0:00:10.6]} 49. Qxd5 {[%clk 0:00:22.8]} 49... Rxb4 {[%clk 0:00:10.2]} 50.
e6 {[%clk 0:00:24.1]} 50... fxe6 {[%clk 0:00:06.6]} 51. Rxe6 {[%clk 0:00:24]}
51... Qb7 {[%clk 0:00:07.3]} 52. Qxb7 {[%clk 0:00:23.5]} 52... Rxb7 {[%clk
0:00:09.1]} 53. R6e3 {[%clk 0:00:24.2]} 53... Kg7 {[%clk 0:00:10.1]} 54. Rd3
{[%clk 0:00:24.6]} 54... Rf8 {[%clk 0:00:11]} 55. Re2 {[%clk 0:00:25.6]} 55...
Rbf7 {[%clk 0:00:12.6]} 56. Red2 {[%clk 0:00:27.2]} 56... h6 {[%clk 0:00:14.5]}
57. h3 {[%clk 0:00:28.6]} 57... Rf6 {[%clk 0:00:15.8]} 58. Rd7+ {[%clk
0:00:29.6]} 58... R6f7 {[%clk 0:00:17.7]} 59. R7d5 {[%clk 0:00:31.4]} 59... Rf6
{[%clk 0:00:19]} 60. h4 {[%clk 0:00:32.9]} 60... R6f7 {[%clk 0:00:20.5]} 61.
R5d4 {[%clk 0:00:34.6]} 61... Rf6 {[%clk 0:00:22]} 62. Rg4 {[%clk 0:00:35.9]}
62... R6f7 {[%clk 0:00:23.1]} 63. h5 {[%clk 0:00:37.2]} 63... Rf6 {[%clk
0:00:24.5]} 64. hxg6 {[%clk 0:00:37.5]} 64... Rxg6 {[%clk 0:00:25.1]} 65. Rd7+
{[%clk 0:00:38.8]} 65... Rf7 {[%clk 0:00:26.4]} 66. Rxf7+ {[%clk 0:00:39.7]}
66... Kxf7 {[%clk 0:00:28.1]} 67. Rxg6 {[%clk 0:00:41.1]} 67... Kxg6 {[%clk
0:00:29.8]} 68. Kh3 {[%clk 0:00:42.2]} 68... Kg5 {[%clk 0:00:29.3]} 69. f4+
{[%clk 0:00:42.5]} 69... Kg6 {[%clk 0:00:25.4]} 70. Kh4 {[%clk 0:00:43.7]} 70...
h5 {[%clk 0:00:25.5]} 71. Kh3 {[%clk 0:00:40.9]} 71... Kf5 {[%clk 0:00:26.3]}
72. Kh4 {[%clk 0:00:35.9]} 72... Kg6 {[%clk 0:00:27.3]} 73. f5+ {[%clk
0:00:30.7]} 73... Kh6 {[%clk 0:00:19.6]} 74. f6 {[%clk 0:00:30.6]} 74... Kg6
{[%clk 0:00:20.7]} 75. f7 {[%clk 0:00:32.1]} 75... Kxf7 {[%clk 0:00:22]} 76.
Kxh5 {[%clk 0:00:33.7]} 76... Kf8 {[%clk 0:00:22.9]} 77. Kg6 {[%clk 0:00:32.8]}
77... Kg8 {[%clk 0:00:23.8]} 78. g4 {[%clk 0:00:31.7]} 78... Kh8 {[%clk
0:00:24.8]} 79. Kf7 {[%clk 0:00:32.2]} 79... Kh7 {[%clk 0:00:25.4]} 80. g5
{[%clk 0:00:29.8]} 80... Kh8 {[%clk 0:00:26.4]} 81. Kg6 {[%clk 0:00:20.7]} 81...
Kg8 {[%clk 0:00:27.3]} 82. Kh6 {[%clk 0:00:21.9]} 82... Kh8 {[%clk 0:00:28.6]}
83. g6 {[%clk 0:00:23.3]} 1-0

[Event "*** Titled Tuesday 3|2 Blitz"]
[Site "Chess.com"]
[Date "2015.04.07"]
[Round "4"]
[White "iFrancisco"]
[Black "patzerplay"]
[Result "1-0"]
[WhiteElo "2223"]
[BlackElo "2150"]
[TimeControl "180+2"]
[EndTime "11:45:40 PDT"]
[Termination "iFrancisco won by resignation"]

1. e4 {[%clk 0:03:01.9]} 1... c5 {[%clk 0:02:58.9]} 2. Nf3 {[%clk 0:03:02]} 2...
d6 {[%clk 0:02:59.3]} 3. d4 {[%clk 0:03:03.1]} 3... cxd4 {[%clk 0:03:01.2]} 4.
Nxd4 {[%clk 0:03:05]} 4... Nf6 {[%clk 0:03:02.6]} 5. Nc3 {[%clk 0:03:06.4]} 5...
a6 {[%clk 0:03:04.2]} 6. Be2 {[%clk 0:03:07.8]} 6... e6 {[%clk 0:03:05]} 7. O-O
{[%clk 0:03:08.5]} 7... Be7 {[%clk 0:03:04.6]} 8. Be3 {[%clk 0:03:09.7]} 8...
O-O {[%clk 0:03:04]} 9. f4 {[%clk 0:03:10.9]} 9... Qc7 {[%clk 0:03:04.3]} 10.
Bf3 {[%clk 0:03:11.4]} 10... Nc6 {[%clk 0:03:02]} 11. Qd3 {[%clk 0:03:09.4]}
11... Bd7 {[%clk 0:02:30.6]} 12. Kh1 {[%clk 0:03:05.8]} 12... Rfe8 {[%clk
0:02:26.1]} 13. Rad1 {[%clk 0:03:05.3]} 13... Rac8 {[%clk 0:02:21.4]} 14. Bg1
{[%clk 0:02:23.8]} 14... b5 {[%clk 0:02:06.9]} 15. Nxc6 {[%clk 0:01:51.5]} 15...
Bxc6 {[%clk 0:02:06.5]} 16. Ne2 {[%clk 0:01:52.1]} 16... d5 {[%clk 0:02:05]} 17.
e5 {[%clk 0:01:53.1]} 17... Ne4 {[%clk 0:02:05.6]} 18. Nd4 {[%clk 0:01:54.5]}
18... Bb7 {[%clk 0:02:06.6]} 19. c3 {[%clk 0:01:55.3]} 19... b4 {[%clk 0:01:54]}
20. cxb4 {[%clk 0:01:49.1]} 20... Bxb4 {[%clk 0:01:54.5]} 21. Qb3 {[%clk
0:01:25.1]} 21... Qe7 {[%clk 0:01:41.3]} 22. Be3 {[%clk 0:01:12.5]} 22... Rc4
{[%clk 0:01:25.6]} 23. Bxe4 {[%clk 0:01:12.3]} 23... Rec8 {[%clk 0:01:22.2]} 24.
Bd3 {[%clk 0:01:09.1]} 24... R4c7 {[%clk 0:01:22.2]} 25. f5 {[%clk 0:01:08.7]}
25... exf5 {[%clk 0:01:21.6]} 26. Nxf5 {[%clk 0:01:09.8]} 26... Qd7 {[%clk
0:01:14.5]} 27. Qxb4 {[%clk 0:01:08.3]} 27... Qc6 {[%clk 0:01:14.3]} 28. Bd4
{[%clk 0:01:07.2]} 28... a5 {[%clk 0:01:14.2]} 29. Ne7+ {[%clk 0:01:07.1]} 29...
Rxe7 {[%clk 0:01:14.7]} 30. Qxe7 {[%clk 0:01:09]} 1-0

[Event "*** Titled Tuesday 3|2 Blitz"]
[Site "Chess.com"]
[Date "2015.04.07"]
[Round "4"]
[White "GMBenjaminBok"]
[Black "David_Klein"]
[Result "1-0"]
[WhiteElo "2455"]
[BlackElo "2337"]
[TimeControl "180+2"]
[EndTime "11:45:51 PDT"]
[Termination "GMBenjaminBok won by resignation"]

1. e4 {[%clk 0:03:01.9]} 1... e6 {[%clk 0:02:59.7]} 2. Qe2 {[%clk 0:03:00.4]}
2... c5 {[%clk 0:02:53.3]} 3. Nf3 {[%clk 0:02:58]} 3... Nc6 {[%clk 0:02:54.7]}
4. g3 {[%clk 0:02:59.1]} 4... Be7 {[%clk 0:02:55.7]} 5. Bg2 {[%clk 0:02:59.8]}
5... d5 {[%clk 0:02:56.7]} 6. d3 {[%clk 0:03:00.9]} 6... Nf6 {[%clk 0:02:57.7]}
7. O-O {[%clk 0:03:01.7]} 7... b6 {[%clk 0:02:56.5]} 8. e5 {[%clk 0:03:00.3]}
8... Nd7 {[%clk 0:02:57]} 9. c4 {[%clk 0:03:01.1]} 9... d4 {[%clk 0:02:52.2]}
10. h4 {[%clk 0:02:34.2]} 10... Bb7 {[%clk 0:02:51.7]} 11. Bf4 {[%clk
0:02:34.8]} 11... h6 {[%clk 0:02:50.6]} 12. h5 {[%clk 0:02:32.4]} 12... Nf8
{[%clk 0:02:45.7]} 13. Re1 {[%clk 0:02:26]} 13... g5 {[%clk 0:02:44.9]} 14. Bc1
{[%clk 0:02:14.1]} 14... Nd7 {[%clk 0:02:39.4]} 15. Nbd2 {[%clk 0:02:03.2]}
15... Qc7 {[%clk 0:02:39.2]} 16. Nf1 {[%clk 0:01:59.8]} 16... O-O-O {[%clk
0:02:27.8]} 17. N1h2 {[%clk 0:01:52.4]} 17... Kb8 {[%clk 0:02:02.3]} 18. Ng4
{[%clk 0:01:51.3]} 18... a5 {[%clk 0:02:03.4]} 19. Bd2 {[%clk 0:01:50.4]} 19...
Nb4 {[%clk 0:02:02.9]} 20. Rec1 {[%clk 0:01:42.3]} 20... Rde8 {[%clk 0:02:01.1]}
21. a3 {[%clk 0:01:41.9]} 21... Nc6 {[%clk 0:02:01.7]} 22. Re1 {[%clk
0:01:34.7]} 22... Bd8 {[%clk 0:01:57.2]} 23. Rab1 {[%clk 0:01:32]} 23... a4
{[%clk 0:01:50.7]} 24. Qd1 {[%clk 0:01:32.7]} 24... f5 {[%clk 0:01:50.1]} 25.
exf6 {[%clk 0:01:31.9]} 25... Nxf6 {[%clk 0:01:51.4]} 26. Nxf6 {[%clk
0:01:28.4]} 26... Bxf6 {[%clk 0:01:52.2]} 27. Qxa4 {[%clk 0:01:28]} 27... g4
{[%clk 0:01:48]} 28. Nh2 {[%clk 0:01:27]} 28... Bg5 {[%clk 0:01:47.7]} 29. Qd1
{[%clk 0:01:21.1]} 29... Ne5 {[%clk 0:01:25.5]} 30. Bxg5 {[%clk 0:01:15.3]}
30... Bxg2 {[%clk 0:01:24.4]} 31. Bf4 {[%clk 0:01:11.4]} 1-0

[Event "*** Titled Tuesday 3|2 Blitz"]
[Site "Chess.com"]
[Date "2015.04.07"]
[Round "4"]
[White "LyonBeast"]
[Black "zmaj23"]
[Result "1-0"]
[WhiteElo "2761"]
[BlackElo "2396"]
[TimeControl "180+2"]
[EndTime "11:46:48 PDT"]
[Termination "LyonBeast won by checkmate"]

1. d4 {[%clk 0:02:58.4]} 1... Nf6 {[%clk 0:02:59.4]} 2. Bg5 {[%clk 0:02:58.3]}
2... e6 {[%clk 0:03:00.3]} 3. Nc3 {[%clk 0:02:56]} 3... d5 {[%clk 0:02:59.3]} 4.
e4 {[%clk 0:02:56.4]} 4... Bb4 {[%clk 0:02:54.2]} 5. e5 {[%clk 0:02:57.3]} 5...
h6 {[%clk 0:02:54.6]} 6. Bc1 {[%clk 0:02:57.4]} 6... Ne4 {[%clk 0:02:46.3]} 7.
Ne2 {[%clk 0:02:58]} 7... c5 {[%clk 0:02:45.9]} 8. a3 {[%clk 0:02:58.1]} 8...
Bxc3+ {[%clk 0:02:46.8]} 9. Nxc3 {[%clk 0:02:58.3]} 9... cxd4 {[%clk 0:02:45]}
10. Qxd4 {[%clk 0:02:56.5]} 10... Nc6 {[%clk 0:02:46.5]} 11. Bb5 {[%clk
0:02:57.1]} 11... Bd7 {[%clk 0:02:42.8]} 12. Bxc6 {[%clk 0:02:56.1]} 12... Bxc6
{[%clk 0:02:44.7]} 13. Ne2 {[%clk 0:02:55.1]} 13... Qb6 {[%clk 0:02:19.8]} 14.
Be3 {[%clk 0:02:42.3]} 14... Qxd4 {[%clk 0:02:18.8]} 15. Bxd4 {[%clk 0:02:40.8]}
15... b6 {[%clk 0:02:17.2]} 16. b4 {[%clk 0:02:35.8]} 16... Ba4 {[%clk 0:02:15]}
17. h4 {[%clk 0:02:33.7]} 17... f6 {[%clk 0:01:30.1]} 18. f3 {[%clk 0:02:33.7]}
18... fxe5 {[%clk 0:01:30.6]} 19. Bxe5 {[%clk 0:02:35.6]} 19... Nf6 {[%clk
0:01:30.4]} 20. Nd4 {[%clk 0:02:37.2]} 20... Kf7 {[%clk 0:01:25.8]} 21. Kd2
{[%clk 0:02:36.9]} 21... Rac8 {[%clk 0:01:23.6]} 22. Rhe1 {[%clk 0:02:35.8]}
22... Rhe8 {[%clk 0:01:18.4]} 23. Re3 {[%clk 0:02:33.8]} 23... Rc4 {[%clk
0:01:12.2]} 24. Rae1 {[%clk 0:02:34]} 24... Nd7 {[%clk 0:01:09.9]} 25. c3 {[%clk
0:02:34.8]} 25... Rec8 {[%clk 0:01:05.6]} 26. Bd6 {[%clk 0:01:45.9]} 26... e5
{[%clk 0:00:51.3]} 27. Bxe5 {[%clk 0:01:46.7]} 27... Nxe5 {[%clk 0:00:52.9]} 28.
Rxe5 {[%clk 0:01:48.1]} 28... Rxc3 {[%clk 0:00:53.5]} 29. Re7+ {[%clk
0:01:49.7]} 29... Kg6 {[%clk 0:00:49.5]} 30. Rxa7 {[%clk 0:01:51.6]} 30... Rxa3
{[%clk 0:00:46.5]} 31. Ree7 {[%clk 0:01:51.2]} 31... Rc4 {[%clk 0:00:43.1]} 32.
Rxg7+ {[%clk 0:01:45.8]} 32... Kh5 {[%clk 0:00:39.3]} 33. Rg4 {[%clk 0:01:37.2]}
33... Ra2+ {[%clk 0:00:36.9]} 34. Ke3 {[%clk 0:01:37.2]} 34... Ra3+ {[%clk
0:00:37.9]} 35. Kf2 {[%clk 0:01:38.2]} 35... Ra2+ {[%clk 0:00:37]} 36. Kg3
{[%clk 0:01:38.8]} 36... Rxb4 {[%clk 0:00:31.7]} 37. Rh7 {[%clk 0:01:34.3]}
37... Rbb2 {[%clk 0:00:24.7]} 38. Rg5# {[%clk 0:01:34.6]} 1-0

[Event "*** Titled Tuesday 3|2 Blitz"]
[Site "Chess.com"]
[Date "2015.04.07"]
[Round "4"]
[White "jefferyx"]
[Black "Imre91"]
[Result "0-1"]
[WhiteElo "2106"]
[BlackElo "2563"]
[TimeControl "180+2"]
[EndTime "11:48:37 PDT"]
[Termination "Imre91 won by resignation"]

1. b4 {[%clk 0:02:57.8]} 1... Nf6 {[%clk 0:02:59.7]} 2. Bb2 {[%clk 0:02:59]}
2... g6 {[%clk 0:03:00.3]} 3. g4 {[%clk 0:02:59.5]} 3... h6 {[%clk 0:03:00.4]}
4. Nf3 {[%clk 0:03:00.2]} 4... Bg7 {[%clk 0:03:01.4]} 5. Rg1 {[%clk 0:03:01.5]}
5... d6 {[%clk 0:03:01.7]} 6. h4 {[%clk 0:03:02.1]} 6... e5 {[%clk 0:03:01.7]}
7. g5 {[%clk 0:03:02.3]} 7... hxg5 {[%clk 0:03:01.1]} 8. hxg5 {[%clk 0:03:04.2]}
8... Nd5 {[%clk 0:03:02.6]} 9. a3 {[%clk 0:03:04.5]} 9... Nb6 {[%clk 0:03:02.3]}
10. d3 {[%clk 0:03:03.7]} 10... Na4 {[%clk 0:03:01.1]} 11. Qc1 {[%clk
0:02:37.6]} 11... Be6 {[%clk 0:02:58.9]} 12. Nbd2 {[%clk 0:02:30.3]} 12... a5
{[%clk 0:02:53.5]} 13. Ne4 {[%clk 0:02:26.6]} 13... Nd7 {[%clk 0:02:50.5]} 14.
c4 {[%clk 0:02:19.4]} 14... Nxb2 {[%clk 0:02:44.9]} 15. Qxb2 {[%clk 0:02:21.3]}
15... d5 {[%clk 0:02:46.1]} 16. cxd5 {[%clk 0:02:22.4]} 16... Bxd5 {[%clk
0:02:48]} 17. Nfd2 {[%clk 0:02:23.6]} 17... axb4 {[%clk 0:02:46.4]} 18. axb4
{[%clk 0:02:24.9]} 18... Rxa1+ {[%clk 0:02:47]} 19. Qxa1 {[%clk 0:02:26.8]}
19... O-O {[%clk 0:02:41.9]} 20. Rh1 {[%clk 0:02:26.9]} 20... Qe7 {[%clk
0:02:42.1]} 21. Qa5 {[%clk 0:02:22]} 21... c6 {[%clk 0:02:39.2]} 22. Bh3 {[%clk
0:02:21.9]} 22... f5 {[%clk 0:02:23.4]} 23. gxf6 {[%clk 0:02:22.2]} 23... Nxf6
{[%clk 0:02:24.4]} 24. Qc5 {[%clk 0:02:19.6]} 24... Qxc5 {[%clk 0:02:18.6]} 25.
bxc5 {[%clk 0:02:21.5]} 25... Ra8 {[%clk 0:02:19.3]} 26. Kf1 {[%clk 0:02:19.7]}
26... Nxe4 {[%clk 0:02:11]} 27. Nxe4 {[%clk 0:02:20]} 27... Kf7 {[%clk 0:02:04]}
28. Rg1 {[%clk 0:02:13.3]} 28... Bf8 {[%clk 0:02:01.7]} 29. Rg5 {[%clk
0:01:30.1]} 29... Bxe4 {[%clk 0:01:58.6]} 30. dxe4 {[%clk 0:01:32]} 30... Kf6
{[%clk 0:01:59.7]} 31. Rg3 {[%clk 0:01:30]} 31... Bxc5 {[%clk 0:02:00.5]} 32.
Rb3 {[%clk 0:01:23.7]} 32... Ra7 {[%clk 0:01:55.8]} 33. e3 {[%clk 0:01:08.7]}
33... Ke7 {[%clk 0:01:50.8]} 34. f4 {[%clk 0:01:08.2]} 34... Bd6 {[%clk
0:01:34.2]} 35. Bc8 {[%clk 0:00:57.6]} 35... b5 {[%clk 0:01:34.6]} 36. f5 {[%clk
0:00:58.9]} 36... gxf5 {[%clk 0:01:31.5]} 37. exf5 {[%clk 0:00:59]} 37... b4
{[%clk 0:01:30.4]} 38. Ke2 {[%clk 0:00:59.9]} 38... e4 {[%clk 0:01:26.8]} 39.
Be6 {[%clk 0:00:43.9]} 39... Kf6 {[%clk 0:01:27.7]} 40. Kd2 {[%clk 0:00:37.3]}
40... Ra2+ {[%clk 0:01:24.6]} 41. Kc1 {[%clk 0:00:35.1]} 41... Re2 {[%clk
0:01:18.7]} 42. Kd1 {[%clk 0:00:35.9]} 42... Rh2 {[%clk 0:01:19.6]} 43. Kc1
{[%clk 0:00:34]} 43... c5 {[%clk 0:01:18.4]} 44. Rb2 {[%clk 0:00:21.9]} 44...
Rh3 {[%clk 0:01:18.8]} 45. Re2 {[%clk 0:00:21.3]} 45... Ke5 {[%clk 0:01:11.7]}
46. Kc2 {[%clk 0:00:22.2]} 46... Be7 {[%clk 0:01:12.4]} 47. Kb3 {[%clk
0:00:22.9]} 47... Bg5 {[%clk 0:01:13.1]} 48. Kc4 {[%clk 0:00:18.3]} 48... Bxe3
{[%clk 0:01:13.8]} 49. Bc8 {[%clk 0:00:17]} 49... Rf3 {[%clk 0:01:13.4]} 50. Bd7
{[%clk 0:00:12.7]} 50... Bd4 {[%clk 0:01:14.1]} 51. Bc6 {[%clk 0:00:13.3]} 51...
Rc3+ {[%clk 0:01:12.4]} 52. Kb5 {[%clk 0:00:13.1]} 52... e3 {[%clk 0:01:13.7]}
0-1

[Event "*** Titled Tuesday 3|2 Blitz"]
[Site "Chess.com"]
[Date "2015.04.07"]
[Round "4"]
[White "GeorgMeier"]
[Black "Yaacovn"]
[Result "1/2-1/2"]
[WhiteElo "2725"]
[BlackElo "2622"]
[TimeControl "180+2"]
[EndTime "11:49:02 PDT"]
[Termination "Game drawn by repetition"]

1. Nf3 {[%clk 0:02:23.3]} 1... b6 {[%clk 0:02:58.4]} 2. g3 {[%clk 0:02:22.3]}
2... Bb7 {[%clk 0:02:59.6]} 3. Bg2 {[%clk 0:02:23.8]} 3... g6 {[%clk 0:03:01]}
4. c4 {[%clk 0:02:23.6]} 4... Bg7 {[%clk 0:03:01.4]} 5. Nc3 {[%clk 0:02:25.2]}
5... Nf6 {[%clk 0:03:02.4]} 6. O-O {[%clk 0:02:26.7]} 6... O-O {[%clk
0:03:03.7]} 7. d4 {[%clk 0:02:27]} 7... Ne4 {[%clk 0:03:04.7]} 8. Nxe4 {[%clk
0:02:27.6]} 8... Bxe4 {[%clk 0:03:06.6]} 9. Bh3 {[%clk 0:02:27.4]} 9... e6
{[%clk 0:02:56.6]} 10. Bg5 {[%clk 0:02:26.2]} 10... Bf6 {[%clk 0:02:55.3]} 11.
Bh6 {[%clk 0:02:16.2]} 11... Bg7 {[%clk 0:02:56.1]} 12. Bxg7 {[%clk 0:02:13.4]}
12... Kxg7 {[%clk 0:02:58]} 13. Nd2 {[%clk 0:02:13.1]} 13... Bb7 {[%clk
0:02:58]} 14. e4 {[%clk 0:02:06.6]} 14... Qf6 {[%clk 0:02:58.6]} 15. e5 {[%clk
0:02:05.1]} 15... Qe7 {[%clk 0:02:58.6]} 16. Bg2 {[%clk 0:01:54.5]} 16... Bxg2
{[%clk 0:02:58.7]} 17. Kxg2 {[%clk 0:01:56.4]} 17... d6 {[%clk 0:02:57.6]} 18.
Nf3 {[%clk 0:01:50]} 18... Nc6 {[%clk 0:02:50.3]} 19. Qe2 {[%clk 0:01:42.3]}
19... dxe5 {[%clk 0:02:47.4]} 20. dxe5 {[%clk 0:01:43.3]} 20... Rad8 {[%clk
0:02:43.4]} 21. Qe4 {[%clk 0:01:42.1]} 21... Qc5 {[%clk 0:02:34.8]} 22. Rad1
{[%clk 0:01:42.7]} 22... Rxd1 {[%clk 0:02:25.7]} 23. Rxd1 {[%clk 0:01:44.6]}
23... Rd8 {[%clk 0:02:27.2]} 24. Rxd8 {[%clk 0:01:44.7]} 24... Nxd8 {[%clk
0:02:29.1]} 25. Qd4 {[%clk 0:01:20.8]} 25... Nc6 {[%clk 0:01:22.7]} 26. Qxc5
{[%clk 0:01:12.1]} 26... bxc5 {[%clk 0:01:24.6]} 27. a3 {[%clk 0:01:05.7]} 27...
h6 {[%clk 0:00:50.3]} 28. g4 {[%clk 0:00:56.9]} 28... f6 {[%clk 0:00:44]} 29.
exf6+ {[%clk 0:00:57.3]} 29... Kxf6 {[%clk 0:00:45.9]} 30. h3 {[%clk 0:00:55.6]}
30... Ne5 {[%clk 0:00:42.6]} 31. Nd2 {[%clk 0:00:56.4]} 31... Nd3 {[%clk
0:00:42.9]} 32. Kf3 {[%clk 0:00:47.5]} 32... Ke5 {[%clk 0:00:36.9]} 33. Ke3
{[%clk 0:00:44.8]} 33... Nxb2 {[%clk 0:00:37.8]} 34. f4+ {[%clk 0:00:45]} 34...
Kd6 {[%clk 0:00:38.6]} 35. Ne4+ {[%clk 0:00:30.8]} 35... Ke7 {[%clk 0:00:39.1]}
36. Nd2 {[%clk 0:00:31.1]} 36... a5 {[%clk 0:00:36.8]} 37. Ke2 {[%clk
0:00:29.3]} 37... a4 {[%clk 0:00:36.4]} 38. Ke3 {[%clk 0:00:28.1]} 38... Kf7
{[%clk 0:00:33.7]} 39. Ke4 {[%clk 0:00:26.8]} 39... Kf6 {[%clk 0:00:33.8]} 40.
h4 {[%clk 0:00:28.1]} 40... Ke7 {[%clk 0:00:31.4]} 41. g5 {[%clk 0:00:27.1]}
41... hxg5 {[%clk 0:00:25]} 42. hxg5 {[%clk 0:00:25]} 42... Kd6 {[%clk
0:00:26.2]} 43. Ke3 {[%clk 0:00:26.3]} 43... Kd7 {[%clk 0:00:23]} 44. Ke4 {[%clk
0:00:24.1]} 44... Ke7 {[%clk 0:00:22.5]} 45. Ke3 {[%clk 0:00:25.4]} 45... Kd6
{[%clk 0:00:19.5]} 46. Ne4+ {[%clk 0:00:25.1]} 46... Kc6 {[%clk 0:00:18.3]} 47.
Nd2 {[%clk 0:00:26.2]} 47... Kd7 {[%clk 0:00:18.7]} 48. Ke4 {[%clk 0:00:24.1]}
48... Ke7 {[%clk 0:00:17]} 49. Ke3 {[%clk 0:00:24.8]} 49... Kd7 {[%clk
0:00:12.7]} 1/2-1/2